Cogmind - Beta 14 @@@ ROGUE MODE // 2024.08.07 @ 22:28:03 Player: Daffa0360 Result: Destroyed by D-53 Grenadier with Mini Grenade Launcher Performance ------------- Evolutions (1) 500 Regions Visited (4) 800 Robots Destroyed (40) 200 Value Destroyed (912) 912 Prototype IDs (6) 120 Alien Tech Used (0) 0 Bonus (31) 31 TOTAL SCORE: 2563 Bonus ------- High Alert Combat Kills 31 Cogmind --------- Core Integrity 0/400 Matter 250/300 Energy 99/100 System Corruption 0% Temperature Cool (0) Movement Core (50) Location -9/Mines Parts ------- > --- POWER (1) -------- (None) > --- PROPULSION (2) --- (None) > --- UTILITY (4) ------ (None) > --- WEAPON (2) ------- (None) > --- INVENTORY (5) ---- Ion Engine Cooling System Signal Interpreter Hacking Suite Mining Laser Peak State ------------ > --- POWER ------------ Improved Ion Engine > --- PROPULSION ------- Aluminum Leg Aluminum Leg > --- UTILITY ---------- Small Storage Unit Improved Sensor Array Improved Targeting Computer Hacking Suite > --- WEAPON ----------- Shock Rifle Advanced Beam Cannon > --- INVENTORY -------- Ion Engine Improved Ion Engine Cooling System Signal Interpreter Melee Analysis Suite ECM Suite Grenade Launcher Mining Laser [Rating: 20] Favorites ----------- Power Improved Ion Engine Engine Improved Ion Engine Propulsion Aluminum Leg Leg Aluminum Leg Utility Small Storage Unit Device Improved Terrain Scanner Storage Small Storage Unit Processor Improved Targeting Computer Hackware Hacking Suite Protection Weapon Shielding Weapon Light Assault Rifle Energy Gun Shock Rifle Energy Cannon Advanced Beam Cannon Ballistic Gun Light Assault Rifle Launcher Grenade Launcher Special Weapon Mining Laser Build | -11 -10 -10 -9 -9 ------- Run | Yrd Mat Min Mat Min Slots Evolved 2 | . . . 2 . Power . | . . . . . Propulsion . | . . . . . Utility 2 | . . . 2 . Weapon . | . . . . . Parts Attached 39 | 7 . 7 22 3 Power 7 | 1 . 1 5 . Engine 7 | 1 . 1 5 . Core . | . . . . . Reactor . | . . . . . Propulsion 10 | 2 . 2 5 1 Treads . | . . . . . Leg 10 | 2 . 2 5 1 Wheel . | . . . . . Hover . | . . . . . Flight . | . . . . . Utility 8 | 2 . . 6 . Device 2 | 1 . . 1 . Storage 2 | 1 . . 1 . Processor 1 | . . . 1 . Hackware 1 | . . . 1 . Protection 2 | . . . 2 . Artifact . | . . . . . Weapon 14 | 2 . 4 6 2 Energy Gun 3 | . . . 2 1 Energy Cannon 1 | . . . 1 . Ballistic Gun 6 | 2 . 2 2 . Ballistic Cannon . | . . . . . Launcher 3 | . . 1 1 1 Special Weapon 1 | . . 1 . . Impact Weapon . | . . . . . Slashing Weapon . | . . . . . Piercing Weapon . | . . . . . Special Melee Weapon . | . . . . . Unidentified Prototypes 1 | . . . 1 . Parts Lost 12 | . . 2 6 4 Power 1 | . . 1 . . Propulsion 4 | . . . 2 2 Utility 4 | . . 1 2 1 Weapon 3 | . . . 2 1 Highest Loss Streak 3 | . . 1 2 3 To Critical Strikes . | . . . . . Average Slot Usage (%) 88 | . 100 94 86 77 Engine 11 | . 14 13 11 11 Leg 20 | . 28 28 19 10 Device 4 | . 14 9 . . Storage 13 | . 14 14 13 11 Processor 5 | . . . 6 11 Hackware 4 | . . . 5 11 Protection 4 | . . . 8 . Energy Gun 6 | . . . 8 10 Energy Cannon 2 | . . . . 11 Ballistic Gun 14 | . 28 27 11 . Peak Build Rating 20 | 9 9 9 20 20 Average Rating 11 | 5 9 7 12 16 On Entrance 8 | . 9 9 6 20 Naked Turns . | . . . . . Heaviest Build 24 | 14 14 16 24 20 Greatest Support 20 | 20 20 20 20 20 Greatest Overweight (x) 6 | . . . 4 6 Average Overweight (x) . | . . . . 1 Largest Inventory Capacity 8 | 8 8 8 8 8 Average Capacity 7 | 7 8 8 8 8 Most Carried 8 | 5 8 8 8 8 Average Carried 6 | 1 5 7 7 7 Final Capacity 8 | 8 8 8 8 5 Final Carried 8 | 2 8 8 8 5 Class Distribution -------------------- 60% | Mutant 39% | Scavenger-Mutant Dominant Class ---------------- Mutant | -10/Materials Mutant | -10/Mines Scavenger-Mutant | -9/Materials Scavenger-Mutant | -9/Mines Resources | -11 -10 -10 -9 -9 ----------- Run | Yrd Mat Min Mat Min Matter Collected 792 | 301 1 207 283 . Remotely . | . . . . . Salvage Created 1595 | 81 . 322 1170 22 Parts 95 | 12 . 19 64 . Haulers Intercepted 1 | . . . 1 . Recyclers Shooed 3 | . . 1 2 . Parts Field Recycled . | . . . . . Retrieved Matter . | . . . . . Parts Self-Destructed . | . . . . . Prevented . | . . . . . Kills | -11 -10 -10 -9 -9 ------- Run | Yrd Mat Min Mat Min Combat Hostiles Destroyed 36 | . . 7 21 8 Guns 24 | . . 7 17 . Cannons 1 | . . . . 1 AOE 11 | . . . 4 7 Classes Destroyed 10 | 1 . 3 5 1 Tunneler 5 | 4 . 1 . . Hauler 1 | . . . 1 . Recycler 5 | . . 1 4 . Operator 1 | . . . 1 . Swarmer 10 | . . 3 7 . Grunt 10 | . . 4 6 . Brawler 1 | . . . 1 . Duelist 1 | . . . 1 . Sentry 6 | . . . 6 . Assembled 8 | . . . . 8 Best Kill Streak 8 | 2 . 6 6 8 Combat Bots Only 8 | . . 5 5 8 Max Kills in Single Turn 4 | 1 . 2 3 4 Gunslinging . | . . . . . Exploded 4 | . . . 2 4 Melee . | . . . . . Uniques/NPCs Destroyed . | . . . . . Combat | -11 -10 -10 -9 -9 -------- Run | Yrd Mat Min Mat Min Hostile Shots Fired 219 | . 2 54 118 45 Missed 66 | . 1 12 39 14 Damage Taken 2151 | . 40 484 980 647 Core 608 | . . 195 165 248 Absorbed by Shields . | . . . . . Redirected to Shielding 52 | . . . 52 . Core Remaining (%) 61 | 100 . 22 . . Volleys Fired 138 | 8 7 28 89 6 Largest 2 | 2 2 2 2 2 Hottest 118 | 40 40 50 118 118 Shots Fired 253 | 16 14 54 160 9 Gun 241 | 16 14 53 155 3 Cannon 7 | . . . 4 3 Launcher 5 | . . 1 1 3 Special . | . . . . . Kinetic 159 | 16 14 53 76 . Thermal 53 | . . . 50 3 Explosive 5 | . . 1 1 3 Electromagnetic 36 | . . . 33 3 Robot Hit Streak 21 | 5 1 4 21 5 Robot Miss Streak 6 | 1 3 6 4 1 Penetration Max . | . . . . . Secondary Targets 5 | . . 2 3 . Max Gunslinging Chain 1 | . . 1 1 . Shots Hit Robots 168 | 10 4 27 120 7 Core Hits 97 | 6 2 15 45 29 Critical Kills 1 | . . . 1 . Critical Parts Destroyed . | . . . . . Critical Strikes 3 | . . . 3 . Burn 1 | . . . 1 . Destroy 1 | . . . 1 . Corrupt 1 | . . . 1 . Melee Attacks . | . . . . . Impact . | . . . . . Slashing . | . . . . . Piercing . | . . . . . Sneak Attacks . | . . . . . Combat Hostiles . | . . . . . Follow-up Attacks . | . . . . . Damage Inflicted 3022 | 117 33 311 1802 759 Guns 1975 | 117 33 311 1470 44 Cannons 82 | . . . 42 40 Explosions 961 | . . . 286 675 Melee . | . . . . . Ramming 4 | . . . 4 . Kinetic 994 | 117 33 311 533 . Thermal 630 | . . . 590 40 Explosive 835 | . . . 160 675 Electromagnetic 559 | . . . 515 44 Impact . | . . . . . Slashing . | . . . . . Piercing . | . . . . . Highest Corruption . | . . . . . Average Corruption . | . . . . . Corruption Purged . | . . . . . Corruption Blocked . | . . . . . Overload Shots . | . . . . . Overflow Damage 19 | . . . . 19 Projectiles 14 | . . . . 14 Explosions 5 | . . . . 5 Melee . | . . . . . Knockbacks . | . . . . . Impact . | . . . . . Kinetic . | . . . . . Secondary . | . . . . . Self-Inflicted Damage 42 | . . . 33 9 Shots 2 | . . . 1 1 Rammed . | . . . . . Targets Rammed 2 | . . . 2 . Kicked 2 | . . . 2 . Crushed . | . . . . . Highest Temperature 240 | . . 25 240 173 Average Temperature 57 | . . 11 59 78 Received Heat Transfer 594 | . 9 204 321 60 Effects 1 | . . . 1 . Energy Bleed 1 | . . . 1 . Siege Activations . | . . . . . Robots Corrupted . | . . . . . Combat Hostiles . | . . . . . Parts Fried . | . . . . . Impact Corruptions . | . . . . . Robots Melted . | . . . . . Combat Hostiles . | . . . . . Parts Melted . | . . . . . Heat Transferred 1395 | . . . 1321 74 Parts Sabotaged . | . . . . . Parts Stolen . | . . . . . Parts Stripped . | . . . . . Power Chain Reactions 1 | . . . 1 . Alert | -11 -10 -10 -9 -9 ------- Run | Yrd Mat Min Mat Min Peak Influence 536 | 20 56 221 536 53 Initial 85 | . 13 21 85 34 Average 140 | 6 25 129 256 23 Maximum Alert Level 2 | . . 1 2 . Low Security (%) 71 | 100 100 72 44 100 Level 1 20 | . . 27 38 . Level 2 7 | . . . 17 . Level 3 . | . . . . . Level 4 . | . . . . . Level 5 . | . . . . . High Security . | . . . . . Max Security . | . . . . . Squads Dispatched 2 | . . . 2 . Investigation . | . . . . . Extermination . | . . . . . Reinforcement 2 | . . . 2 . Assault . | . . . . . Garrison . | . . . . . Intercept . | . . . . . Searches Triggered . | . . . . . Construction Impeded 1 | . . . 1 . Haulers Reinforced . | . . . . . Active Scanning Responses . | . . . . . Cargo Convoy Interrupts . | . . . . . Stealth | -11 -10 -10 -9 -9 --------- Run | Yrd Mat Min Mat Min Distress Signals 3 | . 1 . 2 . Communications Jammed . | . . . . . Distress Signals . | . . . . . Times Spotted 64 | . 4 9 29 22 Peak Tracking Total 20 | . 4 4 6 20 Tactical Retreats 3 | . 1 1 1 . Traps | -11 -10 -10 -9 -9 ------- Run | Yrd Mat Min Mat Min Traps Triggered 1 | . 1 . . . Indirectly . | . . . . . Trap Hack Attempts . | . . . . . Triggered . | . . . . . Disarmed . | . . . . . Reprogrammed . | . . . . . Reused . | . . . . . Traps Extracted . | . . . . . Installed . | . . . . . Triggered . | . . . . . Machines | -11 -10 -10 -9 -9 ---------- Run | Yrd Mat Min Mat Min Machines Disabled 1 | . . . 1 . Max in Single Turn 1 | . . . 1 . Machines Repaired . | . . . . . Machines Dismantled . | . . . . . Machines Sabotaged . | . . . . . Overloaded Fab Kills . | . . . . . Hacking | -11 -10 -10 -9 -9 --------- Run | Yrd Mat Min Mat Min Machines Accessed 7 | . 4 1 2 . Terminals 7 | . 4 1 2 . Fabricators . | . . . . . Repair Stations . | . . . . . Recycling Units . | . . . . . Scanalyzers . | . . . . . Garrison Access . | . . . . . Total Hacks 21 | . 7 1 13 . Successful 14 | . 5 1 8 . Failed 7 | . 2 . 5 . Catastrophic . | . . . . . Database Lockouts . | . . . . . Manual 2 | . . . 2 . Terminals 21 | . 7 1 13 . Fabricators . | . . . . . Repair Stations . | . . . . . Recycling Units . | . . . . . Scanalyzers . | . . . . . Garrison Access . | . . . . . Terminal Hacks 14 | . 5 1 8 . Robot Analysis 1 | . 1 . . . Prototype ID Bank 3 | . 1 . 2 . Emergency Access Points 1 | . 1 . . . Alert Level 2 | . . . 2 . Unreport Threat 2 | . . . 2 . Locate Traps 4 | . 2 . 2 . Zone Layout 1 | . . 1 . . Fabricator Hacks . | . . . . . Repair Station Hacks . | . . . . . Recycling Unit Hacks . | . . . . . Scanalyzer . | . . . . . Garrison Access Hacks . | . . . . . Unauthorized Hacks . | . . . . . Terminals . | . . . . . Fabricators . | . . . . . Repair Stations . | . . . . . Recycling Units . | . . . . . Scanalyzers . | . . . . . Garrison Access . | . . . . . Data Cores Recovered . | . . . . . Used . | . . . . . Hacking Detections 4 | . 2 . 2 . Full Trace Events . | . . . . . Feedback Events . | . . . . . Feedback Blocked . | . . . . . Robot Schematics Acquired . | . . . . . Robots Built . | . . . . . Authchips . | . . . . . Time . | . . . . . Total Robot Build Rating . | . . . . . Part Schematics Acquired . | . . . . . Parts Built . | . . . . . Authchips . | . . . . . Time . | . . . . . Total Part Build Rating . | . . . . . Parts Repaired . | . . . . . Time . | . . . . . Parts Recycled . | . . . . . Recycled Matter . | . . . . . Retrieved Matter . | . . . . . Retrieved Components . | . . . . . Parts Scanalyzed . | . . . . . Part Schematics Acquired . | . . . . . Parts Damaged . | . . . . . Bothacking | -11 -10 -10 -9 -9 ------------ Run | Yrd Mat Min Mat Min Used RIF Installer . | . . . . . Robots Hacked . | . . . . . Non-combat . | . . . . . Combat . | . . . . . Robot Hacks Applied . | . . . . . Relay Couplers Released . | . . . . . Fabnet Peak Effective % . | . . . . . Robots Rewired . | . . . . . Allies Hacked . | . . . . . Hacks Repelled . | . . . . . Allies | -11 -10 -10 -9 -9 -------- Run | Yrd Mat Min Mat Min Total Allies . | . . . . . Largest Group . | . . . . . Highest-Rated Group . | . . . . . Highest-Rated Ally . | . . . . . Total Orders . | . . . . . Ally Attacks . | . . . . . Total Damage . | . . . . . Kills . | . . . . . Allies Corrupted . | . . . . . Allies Melted . | . . . . . Intel | -11 -10 -10 -9 -9 ------- Run | Yrd Mat Min Mat Min Robot Analysis Total 1 | . 1 . . . Derelict Logs Recovered 2 | . . 1 . 1 Drone Launches . | . . . . . Drone Recoveries . | . . . . . Exploration | -11 -10 -10 -9 -9 ------------- Run | Yrd Mat Min Mat Min Turns Passed 1975 | 130 284 307 855 399 Spaces Moved 941 | 86 207 164 351 133 Core 21 | 15 . . 1 5 Treads . | . . . . . Legs 920 | 71 207 164 350 128 Wheels . | . . . . . Hover . | . . . . . Flight . | . . . . . Fastest Speed 50 | 50 120 120 120 50 Average Speed 140 | 107 120 120 149 192 Slowest Speed 350 | 120 120 120 250 350 Overloaded Moves . | . . . . . Propulsion Burnouts . | . . . . . Robots Hopped . | . . . . . Cave-ins Triggered . | . . . . . Exploration Rate (%) 31 | 4 40 37 39 39 Regions Visited 4 Branch Regions 2 Pre-discovered Areas 1 | . . . . 1 Known Exits Taken . | . . . . . Unknown Exits Taken 4 | 1 1 1 1 . Scrap Searched . | . . . . . Spaces Dug . | . . . . . Terrain Destroyed 46 | . . 10 13 23 Melee . | . . . . . Projectile 1 | . . . . 1 AOE 45 | . . 10 13 22 Terrain Rammed . | . . . . . Walls Destroyed . | . . . . . Machines Disabled . | . . . . . Actions | -11 -10 -10 -9 -9 --------- Run | Yrd Mat Min Mat Min Total 1362 | 109 230 223 534 266 Wait 201 | . 9 22 47 123 Move 937 | 85 206 163 350 133 Hop . | . . . . . Pick Up 31 | 9 7 1 13 1 Fast Attach 4 | . . 1 3 . Attach 18 | 7 . . 9 2 Detach . | . . . . . Swap 17 | . . 6 10 1 Drop 14 | . 1 2 11 . Fire 138 | 8 7 28 89 6 Melee . | . . . . . Ram . | . . . . . Kick 2 | . . . 2 . Crush . | . . . . . Escape Stasis . | . . . . . Rewire . | . . . . . Trap . | . . . . . Miscellaneous . | . . . . . Route ------- -11/Scrapyard -10/Materials (discovered 3 exits: *Mat / *Min x2) -10/Mines (discovered 2 exits: *Mat x2) -9/Materials (discovered 2 exits: *Mat / [*Min]) -9/Mines History --------- Turn | Location | Event 10 | -11/Scrapyard | Discovered new exit (range 16) 131 | -11/Scrapyard | Entered Materials 212 | -10/Materials | Discovered new exit (range 12) 285 | -10/Materials | Discovered new exit (range 7) 304 | -10/Materials | Discovered new exit (range 8) 317 | -10/Materials | Build established: Mutant 415 | -10/Materials | Entered Mines 487 | -10/Mines | Learned location of 1 exit from Materials 495 | -10/Mines | Received a Rocket Launcher from a helpful Derelict 552 | -10/Mines | Core integrity fell below 50% 618 | -10/Mines | Discovered new exit (range 8) 699 | -10/Mines | Discovered new exit (range 10) 722 | -10/Mines | Entered Materials 722 | -9/Materials | Evolved 2 slots: Utility x2 723 | -9/Materials | Identified exit to Materials 1459 | -9/Materials | Build established: Scavenger-Mutant 1515 | -9/Materials | Discovered new exit (range 14) 1577 | -9/Materials | Entered Mines 1578 | -9/Mines | Assembled infested the area 1590 | -9/Mines | Core integrity fell below 50% 1609 | -9/Mines | Destroyed 8 combat bots 1628 | -9/Mines | Lost 3 parts (1n1u1w) 1814 | -9/Mines | Learned location of Storage (-8) 1975 | -9/Mines | Core integrity fell below 20% 1976 | -9/Mines | Released all parts (6) 1976 | -9/Mines | Destroyed by D-53 Grenadier with Mini Grenade Launcher Last Messages --------------- 01698_ U-05 Engineer builds a Wall. 01698_ R-06 Scavenger collects Lgt. Ion Engine. 01699_ U-05 Engineer lays Concrete. 01719_ U-05 Engineer builds a Wall. 01758_ K-01 Serf collects debris. 01814_ Acquired derelict log, extracted data. World map updated: -8/Storage. 01815_ A derelict is hurriedly installing traps. 01817_ TR-PWF(g): "Hehe, this'll put a wrench in their mining defense operations..." 01817_ TR-PWF(g) slips into the shadows. 01833_ K-01 Serf collects debris. 01974_ Aluminum Leg destroyed. 01975_ The unstable cave ceiling collapses. 01976_ Released Shock Rifle. 01976_ Released Imp. Ion Engine. 01976_ Released Imp. Targeting Computer. 01976_ Released Hacking Suite. 01976_ Released Sml. Storage Unit. 01976_ Released Adv. Beam Cannon. Map ----- +----------------------------------------------------+ | ???????????????????????????????????????????????? | | ???????????????????????????????????????????????? | | ???????????????????????????????????????????????? | | ???????????######??????????????????????????????? | | ??????????## ######?????????????????????????? | | ??????????# #?????????????????????????? | | ??????????# #?????????????????????????? | | ??????????## ### #?????????????????????????? | | ???????????## #?# #?????????????????????????? | | ???????????## #?# #?????????????????????????? | | ????????#### ##?# #?????????????????????????? | | ???????## ##?# #?????????????????????????? | | ???????# #?# #?????????????????????????? | | ???????## """ #?# #?????????????????????????? | | ????????# """ ##?# ###????????????? ???????? | | ???????## """ ##??# ##??????????? ??????? | | ??????## #???# ##?????????? ??????? | | ?????## #???# ##?????????# #??????? | | ?????# ##??## #?????????# #??????? | | ????## ###### #?????????# ##?????? | | ???## ##?# ##?????????# ##????? | | ???# #??#^## ###?????????## #????? | | ???# #?# ^#^ ######?####??# ##???? | | ???# #?# # ### ##?? ##??? | | ???## ##?# # # #??# #??? | | ????## ###??# @* # #??# #### | | ?????#####????##### #!![#### #### ### | | ??????????????????## # !] ## ## ### | | ???????????????????# ## # #### | | ???????????????????# # | | ???????????????????#### | | ??????????????????????## ### ##### # | | ???????????????????????# #?## #??##### | | ???????????????????????# #??## #?????? | | ???????????????????????# d ???# #?????? | | ???????????????????????#d #??# #????? | | ???????????????????????# ##??# ???? | | ???????????????????????# #???## ??? | | ??????????????????????? ????## ?? | | ??????????????????????? ????? ? | | ??????????????????????? ???? # ? | | ??????????????????????? ???## ## ?? | | ??????????????????????? ????# ??? | | ?????????????????????? #????# #?????? | | ?????????????????????? ??????##?? #??????? | | ??????????????????????? ?????????????????????? | | ???????????????????????????????????????????????? | | ???????????????????????????????????????????????? | | ???????????????????????????????????????????????? | | ???????????????????????????????????????????????? | +----------------------------------------------------+ Best States ------------- Heat Dissipation 28 Energy Generation 12 Energy Capacity 265 Matter Stores 300 Matter Capacity 300 Sight Range 16 Robot Scan Range 15 Terrain Scan Range 16 Terrain Scan Density 10 Armor Coverage 150 Weapon Shielding 33 Evasion (%) 55 Targeting Accuracy 6 Offensive Hacking 10 Item Schematics ----------------- None Robot Schematics ------------------ None Fabricated ------------ Nothing Alien Tech Used ----------------- None Achievements -------------- Slippery One Challenges ------------ None Game ------ Seed RocketCannonActivator Manual? 0 Play Time 00:22:50 Cumulative 27.3 hours Start 2024.08.07 @ 21:05:32 End 2024.08.07 @ 22:28:03 Sessions 1 Manual Loads 0 Difficulty Rogue Special Mode None Game No. 46 Rogue 42 Adventurer 4 Explorer 0 Win Type - Total 0 Types 0/0/0/0/0/0/0/0/0 Lore% 7 Gallery% 25 Achievement% 18 Wizard Run 0 Options --------- Layout 1 ASCII 0 Keyboard 0 Movement Mouse Keybinds 0 Fullscreen 2 Font 24/Smallcaps Map View 50x35 Zoom Use 0% Tactical HUD 1 Map Filters NONE Filters NONE Steam 1 RUN: 189827f6-a5b4-4731-b6c6-861b0f7e4f9e